Workbook

Sheet Dashboard
A1: Sent this month: | D1: 2278 | F1: Left process at stage 1: | J1: 1338 | L1: Left process at stage 2: | P1: 82 | R1: Exited process: | V1: 510 | X1: Settled: | AA1: 238
A3: Δ from last month: | D3: -421 | F3: Δ from last month: | J3: 29 | L3: Δ from last month: | P3: 13 | R3: Δ from last month: | V3: -8 | X3: Δ from last month: | AA3: -53
A5: Rolling 12 months: | D5: 35444 | F5: Rolling 12 months: | J5: 19878 | L5: Rolling 12 months: | P5: 1032 | R5: Rolling 12 months: | V5: 6704 | X5: Rolling 12 months: | AA5: 3209
A7: Left Process Breakdowns - Stage 1:
A9: Reason | H9: This Month | J9: Last Month | L9: Δ
A10: Liability Decision Timeout | H10: 1077 | J10: 1001 | L10: 76
A11: Other | H11: 257 | J11: 299 | L11: -42
A12: Total | H12: 1334 | J12: 1300 | L12: 34
A13: Left Process Breakdowns - Stage 2:
A15: Reason | H15: This Month | J15: Last Month | L15: Δ
A16: Interim payment more than £1,000 not agreed: | H16: 1 | J16: 2 | L16: -1
A17: Settlement pack repudiated: | H17: 1 | J17: 0 | L17: 1
A18: Settlement pack timeout: | H18: 29 | J18: 23 | L18: 6
A19: No agreement; Court Proceedings pack: | H19: 51 | J19: 44 | L19: 7
A20: Total | H20: 82 | J20: 69 | L20: 13

Sheet Backing Sheet Data
A1: Reporting date | B1: 2025-04-01
A2: Previous month | B2: 2025-03-01
A4: Rolling 13 CNFs sent | D4: Average General Damages chart data | H4: Left Process Breakdown | P4: *Use this for In Month table on Dashboard
P5: * Figures refreshed from May 23 - Apr 25
A6: Period | B6: Rolling 12 Sent | D6: Row Labels | E6: Ave General Damages | H6: This Month LDT | I6: This Month Other Liability | J6: This Month Interim Payment Not Agreed | K6: This Month Repudiated | L6: This Month Timeout | M6: This Month Court Proceedings | P6: Period | Q6: CNFs Sent | R6: CNFs left at Stage 1 | S6: Stage 2 Exit | T6: Exit process | U6: Court Pack | V6: Settled claims | W6: General Damages
A7: 2024-04-01 | B7: 40199 | D7: 2024-04-01 | E7: 5887.266546 | H7: 1077 | I7: 257 | J7: 1 | K7: 1 | L7: 29 | M7: 51 | P7: 2019-01-01 | Q7: 4652 | R7: 3001 | S7: 60 | T7: 818 | U7: 82 | V7: 538 | W7: 4257.279107
A8: 2024-05-01 | B8: 40156 | D8: 2024-05-01 | E8: 6260.844549 | P8: 2019-02-01 | Q8: 4582 | R8: 2096 | S8: 55 | T8: 615 | U8: 66 | V8: 546 | W8: 3956.258205
A9: 2024-06-01 | B9: 39631 | D9: 2024-06-01 | E9: 6529.575791 | P9: 2019-03-01 | Q9: 4831 | R9: 2831 | S9: 45 | T9: 773 | U9: 82 | V9: 643 | W9: 4356.284447
A10: 2024-07-01 | B10: 39208 | D10: 2024-07-01 | E10: 6786.71029 | P10: 2019-04-01 | Q10: 4401 | R10: 2782 | S10: 50 | T10: 729 | U10: 69 | V10: 514 | W10: 4257.751381
A11: 2024-08-01 | B11: 38673 | D11: 2024-08-01 | E11: 6246.916355 | P11: 2019-05-01 | Q11: 4374 | R11: 2882 | S11: 45 | T11: 850 | U11: 72 | V11: 545 | W11: 4283.996495
A12: 2024-09-01 | B12: 38266 | D12: 2024-09-01 | E12: 6373.169285 | P12: 2019-06-01 | Q12: 4188 | R12: 2614 | S12: 61 | T12: 729 | U12: 79 | V12: 476 | W12: 4252.704495
A13: 2024-10-01 | B13: 38272 | D13: 2024-10-01 | E13: 6704.625992 | P13: 2019-07-01 | Q13: 5078 | R13: 2851 | S13: 52 | T13: 889 | U13: 78 | V13: 569 | W13: 4552.951089
A14: 2024-11-01 | B14: 37681 | D14: 2024-11-01 | E14: 6677.562293 | P14: 2019-08-01 | Q14: 4784 | R14: 2607 | S14: 44 | T14: 780 | U14: 82 | V14: 472 | W14: 4406.403432
A15: 2024-12-01 | B15: 36469 | D15: 2024-12-01 | E15: 6591.129758 | P15: 2019-09-01 | Q15: 4514 | R15: 2850 | S15: 45 | T15: 791 | U15: 59 | V15: 480 | W15: 4234.286937
A16: 2025-01-01 | B16: 36965 | D16: 2025-01-01 | E16: 6155.892145 | P16: 2019-10-01 | Q16: 4860 | R16: 2554 | S16: 67 | T16: 851 | U16: 89 | V16: 550 | W16: 4512.531945
A17: 2025-02-01 | B17: 36461 | D17: 2025-02-01 | E17: 8229.927627 | P17: 2019-11-01 | Q17: 4516 | R17: 2210 | S17: 40 | T17: 806 | U17: 77 | V17: 511 | W17: 4165.443933
A18: 2025-03-01 | B18: 36105 | D18: 2025-03-01 | E18: 6560.850206 | P18: 2019-12-01 | Q18: 3415 | R18: 2110 | S18: 43 | T18: 724 | U18: 58 | V18: 430 | W18: 4213.024046
A19: 2025-04-01 | B19: 35444 | D19: 2025-04-01 | E19: 6604.04042 | P19: 2020-01-01 | Q19: 4668 | R19: 2270 | S19: 40 | T19: 806 | U19: 62 | V19: 515 | W19: 4338.770155
D20: Grand Total | E20: 85608.51126 | P20: 2020-02-01 | Q20: 4534 | R20: 1714 | S20: 41 | T20: 689 | U20: 84 | V20: 491 | W20: 4327.573197
P21: 2020-03-01 | Q21: 4310 | R21: 2417 | S21: 70 | T21: 878 | U21: 74 | V21: 497 | W21: 4435.140422
B22: 20146 | P22: 2020-04-01 | Q22: 2857 | R22: 2362 | S22: 49 | T22: 754 | U22: 67 | V22: 463 | W22: 4444.004341
A23: Exit Process Reason | B23: Total | P23: 2020-05-01 | Q23: 2284 | R23: 1801 | S23: 32 | T23: 608 | U23: 72 | V23: 392 | W23: 4446.421887
A24: Incomplete information provided on CNF | B24: 1586 | P24: 2020-06-01 | Q24: 2713 | R24: 1512 | S24: 42 | T24: 513 | U24: 56 | V24: 361 | W24: 4457.881495
A25: Value of claim below £1,000 | B25: 31 | P25: 2020-07-01 | Q25: 3147 | R25: 1378 | S25: 37 | T25: 488 | U25: 47 | V25: 310 | W25: 4767.555129
A26: Value of claim exceeds the upper limit | B26: 425 | P26: 2020-08-01 | Q26: 2544 | R26: 1217 | S26: 30 | T26: 422 | U26: 35 | V26: 228 | W26: 4843.45057
A27: Claim is too complex for process | B27: 93 | P27: 2020-09-01 | Q27: 3548 | R27: 1629 | S27: 35 | T27: 545 | U27: 51 | V27: 325 | W27: 4378.508
A28: Withdrawl of claim | B28: 102 | P28: 2020-10-01 | Q28: 3817 | R28: 1749 | S28: 41 | T28: 623 | U28: 49 | V28: 328 | W28: 4633.476463
A29: Duplicated claim | B29: 715 | P29: 2020-11-01 | Q29: 3172 | R29: 1907 | S29: 48 | T29: 624 | U29: 43 | V29: 343 | W29: 4743.351166
A30: Withdrawal of offer | B30: 33 | P30: 2020-12-01 | Q30: 2510 | R30: 1794 | S30: 29 | T30: 576 | U30: 55 | V30: 306 | W30: 4367.751503
A31: Interim payment for child claimant | B31: 2 | P31: 2021-01-01 | Q31: 2953 | R31: 1521 | S31: 21 | T31: 529 | U31: 43 | V31: 356 | W31: 4548.306966
A32: Claim requires further investigation | B32: 9148 | P32: 2021-02-01 | Q32: 1671 | R32: 1046 | S32: 23 | T32: 324 | U32: 34 | V32: 303 | W32: 4595.191023
A33: Other | B33: 7682 | P33: 2021-03-01 | Q33: 3276 | R33: 1716 | S33: 44 | T33: 588 | U33: 50 | V33: 408 | W33: 4982.46397
A34: Stage 1 costs not paid on time | B34: 160 | P34: 2021-04-01 | Q34: 2692 | R34: 1432 | S34: 32 | T34: 528 | U34: 59 | V34: 338 | W34: 4664.866923
A35: Interim Payment partial offer not accepted | B35: 6 | P35: 2021-05-01 | Q35: 2707 | R35: 1219 | S35: 31 | T35: 474 | U35: 60 | V35: 297 | W35: 5076.254545
A36: Interim Payment request not answered and/or paid on time | B36: 86 | P36: 2021-06-01 | Q36: 3066 | R36: 1555 | S36: 43 | T36: 547 | U36: 61 | V36: 338 | W36: 4990.970355
A37: Failure to provide adequate loss of earnings details | B37: 4 | P37: 2021-07-01 | Q37: 3155 | R37: 1538 | S37: 32 | T37: 552 | U37: 56 | V37: 313 | W37: 4951.649361
A38: Failure to acknowledge CNF on time | B38: 73 | P38: 2021-08-01 | Q38: 3244 | R38: 1660 | S38: 29 | T38: 527 | U38: 45 | V38: 294 | W38: 5183.901598
P39: 2021-09-01 | Q39: 3530 | R39: 1600 | S39: 35 | T39: 544 | U39: 43 | V39: 293 | W39: 4979.215017
P40: 2021-10-01 | Q40: 3347 | R40: 1583 | S40: 34 | T40: 600 | U40: 61 | V40: 315 | W40: 4870.601936
P41: 2021-11-01 | Q41: 3381 | R41: 1680 | S41: 36 | T41: 618 | U41: 40 | V41: 322 | W41: 4918.639378
P42: 2021-12-01 | Q42: 2388 | R42: 1611 | S42: 29 | T42: 545 | U42: 36 | V42: 305 | W42: 5012.39895
P43: 2022-01-01 | Q43: 3017 | R43: 1515 | S43: 22 | T43: 576 | U43: 49 | V43: 347 | W43: 4723.256253
P44: 2022-02-01 | Q44: 3075 | R44: 1158 | S44: 34 | T44: 460 | U44: 48 | V44: 318 | W44: 4899.518647
P45: 2022-03-01 | Q45: 3300 | R45: 1795 | S45: 58 | T45: 684 | U45: 55 | V45: 345 | W45: 4537.994724
P46: 2022-04-01 | Q46: 2624 | R46: 1425 | S46: 43 | T46: 533 | U46: 58 | V46: 293 | W46: 4829.560853
P47: 2022-05-01 | Q47: 3003 | R47: 1533 | S47: 47 | T47: 591 | U47: 47 | V47: 366 | W47: 4777.56153
P48: 2022-06-01 | Q48: 2851 | R48: 1480 | S48: 53 | T48: 511 | U48: 50 | V48: 333 | W48: 4807.426486
P49: 2022-07-01 | Q49: 2981 | R49: 1525 | S49: 42 | T49: 526 | U49: 54 | V49: 283 | W49: 4909.139681
P50: 2022-08-01 | Q50: 3364 | R50: 1640 | S50: 51 | T50: 563 | U50: 45 | V50: 262 | W50: 5540.725419
P51: 2022-09-01 | Q51: 3260 | R51: 1644 | S51: 29 | T51: 614 | U51: 49 | V51: 246 | W51: 4830.333739
P52: 2022-10-01 | Q52: 3332 | R52: 1970 | S52: 35 | T52: 637 | U52: 57 | V52: 273 | W52: 5643.042967
P53: 2022-11-01 | Q53: 3322 | R53: 2008 | S53: 40 | T53: 598 | U53: 67 | V53: 281 | W53: 5226.413629
P54: 2022-12-01 | Q54: 2295 | R54: 1921 | S54: 37 | T54: 534 | U54: 45 | V54: 201 | W54: 5676.629104
P55: 2023-01-01 | Q55: 3372 | R55: 1788 | S55: 28 | T55: 576 | U55: 55 | V55: 267 | W55: 6191.644981
P56: 2023-02-01 | Q56: 3297 | R56: 1300 | S56: 37 | T56: 493 | U56: 41 | V56: 274 | W56: 5775.487737
P57: 2023-03-01 | Q57: 3568 | R57: 2193 | S57: 35 | T57: 675 | U57: 60 | V57: 331 | W57: 5439.928519
P58: 2023-04-01 | Q58: 2733 | R58: 1675 | S58: 27 | T58: 533 | U58: 50 | V58: 268 | W58: 5937.084776
P59: 2023-05-01 | Q59: 3172 | R59: 1807 | S59: 36 | T59: 547 | U59: 53 | V59: 272 | W59: 5417.123419
P60: 2023-06-01 | Q60: 3448 | R60: 1970 | S60: 44 | T60: 620 | U60: 54 | V60: 293 | W60: 6128.198771
P61: 2023-07-01 | Q61: 3351 | R61: 1960 | S61: 34 | T61: 642 | U61: 62 | V61: 265 | W61: 5479.147584
P62: 2023-08-01 | Q62: 3397 | R62: 1929 | S62: 38 | T62: 656 | U62: 48 | V62: 281 | W62: 5596.66733
P63: 2023-09-01 | Q63: 3142 | R63: 1973 | S63: 42 | T63: 614 | U63: 54 | V63: 287 | W63: 6067.685052
P64: 2023-10-01 | Q64: 3323 | R64: 1969 | S64: 42 | T64: 601 | U64: 43 | V64: 317 | W64: 5802.980189
P65: 2023-11-01 | Q65: 3233 | R65: 1998 | S65: 41 | T65: 591 | U65: 56 | V65: 329 | W65: 5550.885744
P66: 2023-12-01 | Q66: 2259 | R66: 1599 | S66: 36 | T66: 499 | U66: 31 | V66: 256 | W66: 6038.148867
P67: 2024-01-01 | Q67: 3163 | R67: 1885 | S67: 43 | T67: 590 | U67: 49 | V67: 299 | W67: 5719.211739
P68: 2024-02-01 | Q68: 3055 | R68: 1524 | S68: 33 | T68: 507 | U68: 48 | V68: 320 | W68: 5574.140375
P69: 2024-03-01 | Q69: 2939 | R69: 1716 | S69: 40 | T69: 528 | U69: 43 | V69: 265 | W69: 6120.210377
P70: 2024-04-01 | Q70: 2984 | R70: 1758 | S70: 36 | T70: 499 | U70: 50 | V70: 278 | W70: 5887.266546
P71: 2024-05-01 | Q71: 2690 | R71: 1801 | S71: 32 | T71: 474 | U71: 52 | V71: 222 | W71: 6260.844549
P72: 2024-06-01 | Q72: 2647 | R72: 1642 | S72: 36 | T72: 513 | U72: 35 | V72: 221 | W72: 6529.575791
P73: 2024-07-01 | Q73: 3025 | R73: 1814 | S73: 47 | T73: 601 | U73: 45 | V73: 275 | W73: 6786.71029
P74: 2024-08-01 | Q74: 2816 | R74: 1599 | S74: 43 | T74: 497 | U74: 42 | V74: 214 | W74: 6246.916355
P75: 2024-09-01 | Q75: 2990 | R75: 1593 | S75: 36 | T75: 525 | U75: 37 | V75: 224 | W75: 6373.169285
P76: 2024-10-01 | Q76: 3148 | R76: 1662 | S76: 39 | T76: 604 | U76: 47 | V76: 262 | W76: 6704.625992
P77: 2024-11-01 | Q77: 2732 | R77: 1560 | S77: 21 | T77: 548 | U77: 52 | V77: 266 | W77: 6677.562293
P78: 2024-12-01 | Q78: 2021 | R78: 1373 | S78: 30 | T78: 445 | U78: 51 | V78: 207 | W78: 6591.129758
P79: 2025-01-01 | Q79: 2755 | R79: 1408 | S79: 37 | T79: 495 | U79: 45 | V79: 275 | W79: 6155.892145
P80: 2025-02-01 | Q80: 2659 | R80: 1021 | S80: 29 | T80: 475 | U80: 39 | V80: 236 | W80: 8229.927627
P81: 2025-03-01 | Q81: 2699 | R81: 1309 | S81: 25 | T81: 518 | U81: 44 | V81: 291 | W81: 6560.850206
P82: 2025-04-01 | Q82: 2278 | R82: 1338 | S82: 31 | T82: 510 | U82: 51 | V82: 238 | W82: 6604.04042

Sheet vPLDashboard (hidden)
B1: =SUBTOTAL(9,vPLDashboard[CNFs Sent]) -> 173513 | C1: =SUBTOTAL(9,vPLDashboard[CNFs left at Stage 1]) -> 90965 | D1: =SUBTOTAL(9,vPLDashboard[Stage 2 Exit]) -> 1932 | E1: =SUBTOTAL(9,vPLDashboard[Exit process]) -> 30235 | F1: =SUBTOTAL(9,vPLDashboard[Court Pack]) -> 2688 | G1: =SUBTOTAL(9,vPLDashboard[Settled claims]) -> 13502 | H1: =SUBTOTAL(9,vPLDashboard[General Damages]) -> 399848.8892 | R1: * Figures refreshed from May 23 - Apr 25
A2: Period | B2: CNFs Sent | C2: CNFs left at Stage 1 | D2: Stage 2 Exit | E2: Exit process | F2: Court Pack | G2: Settled claims | H2: General Damages | J2: Period | K2: Rolling 13 CNF Sent | L2: Rolling 13 CNF Left at Stage 1 | M2: Rolling 13 Stage 2 Exit | N2: Rolling 13 Exit Process | O2: Rolling 13 Court Pack | P2: Rolling 13 Settled Claims | R2: Period | S2: CNFs Sent | T2: CNFs left at Stage 1 | U2: Stage 2 Exit | V2: Exit process | W2: Court Pack | X2: Settled claims | Y2: General Damages
A3: 2019-01-01 | B3: 437 | C3: 0 | D3: 0 | E3: 0 | F3: 0 | G3: 1 | H3: 3000 | J3: =vPLDashboard[[#This Row],[Period]] -> 2019-01-01 | R3: 2019-01-01 | S3: 4652 | T3: 3001 | U3: 60 | V3: 818 | W3: 82 | X3: 538 | Y3: 4257.279107
A4: 2019-02-01 | B4: 429 | C4: 0 | D4: 0 | E4: 0 | F4: 0 | G4: 1 | H4: 2500 | J4: =vPLDashboard[[#This Row],[Period]] -> 2019-02-01 | R4: 2019-02-01 | S4: 4582 | T4: 2096 | U4: 55 | V4: 615 | W4: 66 | X4: 546 | Y4: 3956.258205
A5: 2019-03-01 | B5: 482 | C5: 0 | D5: 0 | E5: 0 | F5: 0 | G5: 4 | H5: 3459.4 | J5: =vPLDashboard[[#This Row],[Period]] -> 2019-03-01 | R5: 2019-03-01 | S5: 4831 | T5: 2831 | U5: 45 | V5: 773 | W5: 82 | X5: 643 | Y5: 4356.284447
A6: 2019-04-01 | B6: 469 | C6: 0 | D6: 0 | E6: 0 | F6: 0 | G6: 2 | H6: 1550 | J6: =vPLDashboard[[#This Row],[Period]] -> 2019-04-01 | R6: 2019-04-01 | S6: 4401 | T6: 2782 | U6: 50 | V6: 729 | W6: 69 | X6: 514 | Y6: 4257.751381
A7: 2019-06-01 | B7: 448 | C7: 0 | D7: 0 | E7: 0 | F7: 0 | G7: 2 | H7: 3650 | J7: =vPLDashboard[[#This Row],[Period]] -> 2019-06-01 | R7: 2019-05-01 | S7: 4374 | T7: 2882 | U7: 45 | V7: 850 | W7: 72 | X7: 545 | Y7: 4283.996495
A8: 2019-08-01 | B8: 1227 | C8: 0 | D8: 0 | E8: 0 | F8: 0 | G8: 2 | H8: 3950 | J8: =vPLDashboard[[#This Row],[Period]] -> 2019-08-01 | R8: 2019-06-01 | S8: 4188 | T8: 2614 | U8: 61 | V8: 729 | W8: 79 | X8: 476 | Y8: 4252.704495
A9: 2019-09-01 | B9: 1472 | C9: 15 | D9: 0 | E9: 6 | F9: 2 | G9: 5 | H9: 3448.992 | J9: =vPLDashboard[[#This Row],[Period]] -> 2019-09-01 | R9: 2019-07-01 | S9: 5078 | T9: 2851 | U9: 52 | V9: 889 | W9: 78 | X9: 569 | Y9: 4552.951089
A10: 2019-10-01 | B10: 1807 | C10: 833 | D10: 21 | E10: 269 | F10: 31 | G10: 70 | H10: 4535.602 | J10: =vPLDashboard[[#This Row],[Period]] -> 2019-10-01 | R10: 2019-08-01 | S10: 4784 | T10: 2607 | U10: 44 | V10: 780 | W10: 82 | X10: 472 | Y10: 4406.403432
A11: 2019-11-01 | B11: 1737 | C11: 784 | D11: 16 | E11: 256 | F11: 26 | G11: 49 | H11: 4310.368979 | J11: =vPLDashboard[[#This Row],[Period]] -> 2019-11-01 | R11: 2019-09-01 | S11: 4514 | T11: 2850 | U11: 45 | V11: 791 | W11: 59 | X11: 480 | Y11: 4234.286937
A12: 2019-12-01 | B12: 1244 | C12: 790 | D12: 13 | E12: 258 | F12: 19 | G12: 56 | H12: 4710.399821 | J12: =vPLDashboard[[#This Row],[Period]] -> 2019-12-01 | R12: 2019-10-01 | S12: 4860 | T12: 2554 | U12: 67 | V12: 851 | W12: 89 | X12: 550 | Y12: 4512.531945
A13: 2020-01-01 | B13: 1799 | C13: 841 | D13: 17 | E13: 287 | F13: 16 | G13: 61 | H13: 5458.238852 | J13: =vPLDashboard[[#This Row],[Period]] -> 2020-01-01 | R13: 2019-11-01 | S13: 4516 | T13: 2210 | U13: 40 | V13: 806 | W13: 77 | X13: 511 | Y13: 4165.443933
A14: 2020-02-01 | B14: 1724 | C14: 618 | D14: 16 | E14: 252 | F14: 28 | G14: 66 | H14: 5486.105606 | J14: =vPLDashboard[[#This Row],[Period]] -> 2020-02-01 | K14: =SUM(B2:B14) -> 13275 | L14: 3881 | M14: 83 | N14: 1328 | O14: 122 | P14: 319 | R14: 2019-12-01 | S14: 3415 | T14: 2110 | U14: 43 | V14: 724 | W14: 58 | X14: 430 | Y14: 4213.024046
A15: 2020-03-01 | B15: 1598 | C15: 887 | D15: 27 | E15: 348 | F15: 29 | G15: 72 | H15: 4699.629305 | J15: =vPLDashboard[[#This Row],[Period]] -> 2020-03-01 | K15: =SUM(B3:B15) -> 14873 | L15: 4768 | M15: 110 | N15: 1676 | O15: 151 | P15: 391 | R15: 2020-01-01 | S15: 4668 | T15: 2270 | U15: 40 | V15: 806 | W15: 62 | X15: 515 | Y15: 4338.770155
A16: 2020-04-01 | B16: 1022 | C16: 834 | D16: 16 | E16: 282 | F16: 22 | G16: 53 | H16: 4258.478301 | J16: =vPLDashboard[[#This Row],[Period]] -> 2020-04-01 | K16: =SUM(B4:B16) -> 15458 | L16: 5602 | M16: 126 | N16: 1958 | O16: 173 | P16: 443 | R16: 2020-02-01 | S16: 4534 | T16: 1714 | U16: 41 | V16: 689 | W16: 84 | X16: 491 | Y16: 4327.573197
A17: 2020-05-01 | B17: 887 | C17: 629 | D17: 9 | E17: 230 | F17: 25 | G17: 61 | H17: 4877.445409 | J17: =vPLDashboard[[#This Row],[Period]] -> 2020-05-01 | K17: =SUM(B5:B17) -> 15916 | L17: 6231 | M17: 135 | N17: 2188 | O17: 198 | P17: 503 | R17: 2020-03-01 | S17: 4310 | T17: 2417 | U17: 70 | V17: 878 | W17: 74 | X17: 497 | Y17: 4435.140422
A18: 2020-06-01 | B18: 1078 | C18: 514 | D18: 17 | E18: 187 | F18: 20 | G18: 57 | H18: 4733.284035 | J18: =vPLDashboard[[#This Row],[Period]] -> 2020-06-01 | K18: =SUM(B6:B18) -> 16512 | L18: 6745 | M18: 152 | N18: 2375 | O18: 218 | P18: 556 | R18: 2020-04-01 | S18: 2857 | T18: 2362 | U18: 49 | V18: 754 | W18: 67 | X18: 463 | Y18: 4444.004341
A19: 2020-07-01 | B19: 1329 | C19: 518 | D19: 15 | E19: 198 | F19: 16 | G19: 56 | H19: 4929.139642 | J19: =vPLDashboard[[#This Row],[Period]] -> 2020-07-01 | K19: =SUM(B7:B19) -> 17372 | L19: 7263 | M19: 167 | N19: 2573 | O19: 234 | P19: 610 | R19: 2020-05-01 | S19: 2284 | T19: 1801 | U19: 32 | V19: 608 | W19: 72 | X19: 392 | Y19: 4446.421887
A20: 2020-08-01 | B20: 1176 | C20: 468 | D20: 10 | E20: 180 | F20: 22 | G20: 37 | H20: 5154.588378 | J20: =vPLDashboard[[#This Row],[Period]] -> 2020-08-01 | K20: =SUM(B8:B20) -> 18100 | L20: 7731 | M20: 177 | N20: 2753 | O20: 256 | P20: 645 | R20: 2020-06-01 | S20: 2713 | T20: 1512 | U20: 42 | V20: 513 | W20: 56 | X20: 361 | Y20: 4457.881495
A21: 2020-09-01 | B21: 1537 | C21: 590 | D21: 14 | E21: 208 | F21: 24 | G21: 41 | H21: 5543.31 | J21: =vPLDashboard[[#This Row],[Period]] -> 2020-09-01 | K21: =SUM(B9:B21) -> 18410 | L21: 8321 | M21: 191 | N21: 2961 | O21: 280 | P21: 684 | R21: 2020-07-01 | S21: 3147 | T21: 1378 | U21: 37 | V21: 488 | W21: 47 | X21: 310 | Y21: 4767.555129
A22: 2020-10-01 | B22: 1564 | C22: 577 | D22: 15 | E22: 248 | F22: 18 | G22: 53 | H22: 5127.726792 | J22: =vPLDashboard[[#This Row],[Period]] -> 2020-10-01 | K22: =SUM(B10:B22) -> 18502 | L22: 8883 | M22: 206 | N22: 3203 | O22: 296 | P22: 732 | R22: 2020-08-01 | S22: 2544 | T22: 1217 | U22: 30 | V22: 422 | W22: 35 | X22: 228 | Y22: 4843.45057
A23: 2020-11-01 | B23: 1444 | C23: 685 | D23: 18 | E23: 250 | F23: 18 | G23: 74 | H23: 4544.284324 | J23: =vPLDashboard[[#This Row],[Period]] -> 2020-11-01 | K23: =SUM(B11:B23) -> 18139 | L23: 8735 | M23: 203 | N23: 3184 | O23: 283 | P23: 736 | R23: 2020-09-01 | S23: 3548 | T23: 1629 | U23: 35 | V23: 545 | W23: 51 | X23: 325 | Y23: 4378.508
A24: 2020-12-01 | B24: 1078 | C24: 593 | D24: 8 | E24: 259 | F24: 26 | G24: 71 | H24: 5332.60183 | J24: =vPLDashboard[[#This Row],[Period]] -> 2020-12-01 | K24: =SUM(B12:B24) -> 17480 | L24: 8544 | M24: 195 | N24: 3187 | O24: 283 | P24: 758 | R24: 2020-10-01 | S24: 3817 | T24: 1749 | U24: 41 | V24: 623 | W24: 49 | X24: 328 | Y24: 4633.476463
A25: 2021-01-01 | B25: 1388 | C25: 565 | D25: 6 | E25: 224 | F25: 25 | G25: 70 | H25: 5071.024428 | J25: =vPLDashboard[[#This Row],[Period]] -> 2021-01-01 | K25: =SUM(B13:B25) -> 17624 | L25: 8319 | M25: 188 | N25: 3153 | O25: 289 | P25: 772 | R25: 2020-11-01 | S25: 3172 | T25: 1907 | U25: 48 | V25: 624 | W25: 43 | X25: 343 | Y25: 4743.351166
A26: 2021-02-01 | B26: 1284 | C26: 463 | D26: 9 | E26: 171 | F26: 19 | G26: 59 | H26: 6086.065254 | J26: =vPLDashboard[[#This Row],[Period]] -> 2021-02-01 | K26: =SUM(B14:B26) -> 17109 | L26: 7941 | M26: 180 | N26: 3037 | O26: 292 | P26: 770 | R26: 2020-12-01 | S26: 2510 | T26: 1794 | U26: 29 | V26: 576 | W26: 55 | X26: 306 | Y26: 4367.751503
A27: 2021-03-01 | B27: 1558 | C27: 616 | D27: 19 | E27: 254 | F27: 24 | G27: 69 | H27: 4898.79855 | J27: =vPLDashboard[[#This Row],[Period]] -> 2021-03-01 | K27: =SUM(B15:B27) -> 16943 | L27: 7939 | M27: 183 | N27: 3039 | O27: 288 | P27: 773 | R27: 2021-01-01 | S27: 2953 | T27: 1521 | U27: 21 | V27: 529 | W27: 43 | X27: 356 | Y27: 4548.306966
A28: 2021-04-01 | B28: 1369 | C28: 560 | D28: 9 | E28: 229 | F28: 33 | G28: 69 | H28: 5772.45826 | J28: =vPLDashboard[[#This Row],[Period]] -> 2021-04-01 | K28: =SUM(B16:B28) -> 16714 | L28: 7612 | M28: 165 | N28: 2920 | O28: 292 | P28: 770 | R28: 2021-02-01 | S28: 1671 | T28: 1046 | U28: 23 | V28: 324 | W28: 34 | X28: 303 | Y28: 4595.191023
A29: 2021-05-01 | B29: 1337 | C29: 525 | D29: 14 | E29: 218 | F29: 29 | G29: 58 | H29: 5382.205344 | J29: =vPLDashboard[[#This Row],[Period]] -> 2021-05-01 | K29: =SUM(B17:B29) -> 17029 | L29: 7303 | M29: 163 | N29: 2856 | O29: 299 | P29: 775 | R29: 2021-03-01 | S29: 3276 | T29: 1716 | U29: 44 | V29: 588 | W29: 50 | X29: 408 | Y29: 4982.46397
A30: 2021-06-01 | B30: 1621 | C30: 602 | D30: 9 | E30: 271 | F30: 32 | G30: 57 | H30: 6016.210701 | J30: =vPLDashboard[[#This Row],[Period]] -> 2021-06-01 | K30: =SUM(B18:B30) -> 17763 | L30: 7276 | M30: 163 | N30: 2897 | O30: 306 | P30: 771 | R30: 2021-04-01 | S30: 2692 | T30: 1432 | U30: 32 | V30: 528 | W30: 59 | X30: 338 | Y30: 4664.866923
A31: 2021-07-01 | B31: 1983 | C31: 573 | D31: 9 | E31: 264 | F31: 32 | G31: 64 | H31: 5514.254062 | J31: =vPLDashboard[[#This Row],[Period]] -> 2021-07-01 | K31: =SUM(B19:B31) -> 18668 | L31: 7335 | M31: 155 | N31: 2974 | O31: 318 | P31: 778 | R31: 2021-05-01 | S31: 2707 | T31: 1219 | U31: 31 | V31: 474 | W31: 60 | X31: 297 | Y31: 5076.254545
A32: 2021-08-01 | B32: 3043 | C32: 673 | D32: 14 | E32: 272 | F32: 26 | G32: 71 | H32: 5754.215774 | J32: =vPLDashboard[[#This Row],[Period]] -> 2021-08-01 | K32: =SUM(B20:B32) -> 20382 | L32: 7490 | M32: 154 | N32: 3048 | O32: 328 | P32: 793 | R32: 2021-06-01 | S32: 3066 | T32: 1555 | U32: 43 | V32: 547 | W32: 61 | X32: 338 | Y32: 4990.970355
A33: 2021-09-01 | B33: 3593 | C33: 1175 | D33: 27 | E33: 402 | F33: 33 | G33: 178 | H33: 5592.961123 | J33: =vPLDashboard[[#This Row],[Period]] -> 2021-09-01 | K33: =SUM(B21:B33) -> 22799 | L33: 8197 | M33: 171 | N33: 3270 | O33: 339 | P33: 934 | R33: 2021-07-01 | S33: 3155 | T33: 1538 | U33: 32 | V33: 552 | W33: 56 | X33: 313 | Y33: 4951.649361
A34: 2021-10-01 | B34: 3512 | C34: 1914 | D34: 34 | E34: 638 | F34: 61 | G34: 314 | H34: 5406.053343 | J34: =vPLDashboard[[#This Row],[Period]] -> 2021-10-01 | K34: =SUM(B22:B34) -> 24774 | L34: 9521 | M34: 191 | N34: 3700 | O34: 376 | P34: 1207 | R34: 2021-08-01 | S34: 3244 | T34: 1660 | U34: 29 | V34: 527 | W34: 45 | X34: 294 | Y34: 5183.901598
A35: 2021-11-01 | B35: 3495 | C35: 2063 | D35: 36 | E35: 658 | F35: 40 | G35: 324 | H35: 5606.865339 | J35: =vPLDashboard[[#This Row],[Period]] -> 2021-11-01 | K35: =SUM(B23:B35) -> 26705 | L35: 11007 | M35: 212 | N35: 4110 | O35: 398 | P35: 1478 | R35: 2021-09-01 | S35: 3530 | T35: 1600 | U35: 35 | V35: 544 | W35: 43 | X35: 293 | Y35: 4979.215017
A36: 2021-12-01 | B36: 2474 | C36: 1943 | D36: 29 | E36: 562 | F36: 36 | G36: 303 | H36: 5562.353531 | J36: =vPLDashboard[[#This Row],[Period]] -> 2021-12-01 | K36: =SUM(B24:B36) -> 27735 | L36: 12265 | M36: 223 | N36: 4422 | O36: 416 | P36: 1707 | R36: 2021-10-01 | S36: 3347 | T36: 1583 | U36: 34 | V36: 600 | W36: 61 | X36: 315 | Y36: 4870.601936
A37: 2022-01-01 | B37: 3232 | C37: 1792 | D37: 22 | E37: 604 | F37: 49 | G37: 331 | H37: 5274.515226 | J37: =vPLDashboard[[#This Row],[Period]] -> 2022-01-01 | K37: =SUM(B25:B37) -> 29889 | L37: 13464 | M37: 237 | N37: 4767 | O37: 439 | P37: 1967 | R37: 2021-11-01 | S37: 3381 | T37: 1680 | U37: 36 | V37: 618 | W37: 40 | X37: 322 | Y37: 4918.639378
A38: 2022-02-01 | B38: 3183 | C38: 1363 | D38: 34 | E38: 476 | F38: 48 | G38: 310 | H38: 5462.393322 | J38: =vPLDashboard[[#This Row],[Period]] -> 2022-02-01 | K38: =SUM(B26:B38) -> 31684 | L38: 14262 | M38: 265 | N38: 5019 | O38: 462 | P38: 2207 | R38: 2021-12-01 | S38: 2388 | T38: 1611 | U38: 29 | V38: 545 | W38: 36 | X38: 305 | Y38: 5012.39895
A39: 2022-03-01 | B39: 3464 | C39: 1974 | D39: 54 | E39: 660 | F39: 51 | G39: 296 | H39: 4932.084358 | J39: =vPLDashboard[[#This Row],[Period]] -> 2022-03-01 | K39: =SUM(B27:B39) -> 33864 | L39: 15773 | M39: 310 | N39: 5508 | O39: 494 | P39: 2444 | R39: 2022-01-01 | S39: 3017 | T39: 1515 | U39: 22 | V39: 576 | W39: 49 | X39: 347 | Y39: 4723.256253
A40: 2022-04-01 | B40: 2780 | C40: 1735 | D40: 43 | E40: 561 | F40: 58 | G40: 295 | H40: 5319.998169 | J40: =vPLDashboard[[#This Row],[Period]] -> 2022-04-01 | K40: =SUM(B28:B40) -> 35086 | L40: 16892 | M40: 334 | N40: 5815 | O40: 528 | P40: 2670 | R40: 2022-02-01 | S40: 3075 | T40: 1158 | U40: 34 | V40: 460 | W40: 48 | X40: 318 | Y40: 4899.518647
A41: 2022-05-01 | B41: 3172 | C41: 1863 | D41: 47 | E41: 630 | F41: 47 | G41: 366 | H41: 5326.301666 | J41: =vPLDashboard[[#This Row],[Period]] -> 2022-05-01 | K41: =SUM(B29:B41) -> 36889 | L41: 18195 | M41: 372 | N41: 6216 | O41: 542 | P41: 2967 | R41: 2022-03-01 | S41: 3300 | T41: 1795 | U41: 58 | V41: 684 | W41: 55 | X41: 345 | Y41: 4537.994724
A42: 2022-06-01 | B42: 3009 | C42: 1716 | D42: 53 | E42: 541 | F42: 50 | G42: 333 | H42: 5471.563153 | J42: =vPLDashboard[[#This Row],[Period]] -> 2022-06-01 | K42: =SUM(B30:B42) -> 38561 | L42: 19386 | M42: 411 | N42: 6539 | O42: 563 | P42: 3242 | R42: 2022-04-01 | S42: 2624 | T42: 1425 | U42: 43 | V42: 533 | W42: 58 | X42: 293 | Y42: 4829.560853
A43: 2022-07-01 | B43: 3209 | C43: 1769 | D43: 42 | E43: 543 | F43: 53 | G43: 271 | H43: 5507.338339 | J43: =vPLDashboard[[#This Row],[Period]] -> 2022-07-01 | K43: =SUM(B31:B43) -> 40149 | L43: 20553 | M43: 444 | N43: 6811 | O43: 584 | P43: 3456 | R43: 2022-05-01 | S43: 3003 | T43: 1533 | U43: 47 | V43: 591 | W43: 47 | X43: 366 | Y43: 4777.56153
A44: 2022-08-01 | B44: 3601 | C44: 1936 | D44: 51 | E44: 576 | F44: 45 | G44: 254 | H44: 6116.399527 | J44: =vPLDashboard[[#This Row],[Period]] -> 2022-08-01 | K44: =SUM(B32:B44) -> 41767 | L44: 21916 | M44: 486 | N44: 7123 | O44: 597 | P44: 3646 | R44: 2022-06-01 | S44: 2851 | T44: 1480 | U44: 53 | V44: 511 | W44: 50 | X44: 333 | Y44: 4807.426486
A45: 2022-09-01 | B45: 3369 | C45: 1906 | D45: 29 | E45: 618 | F45: 49 | G45: 228 | H45: 5522.092017 | J45: =vPLDashboard[[#This Row],[Period]] -> 2022-09-01 | K45: =SUM(B33:B45) -> 42093 | L45: 23149 | M45: 501 | N45: 7469 | O45: 620 | P45: 3803 | R45: 2022-07-01 | S45: 2981 | T45: 1525 | U45: 42 | V45: 526 | W45: 54 | X45: 283 | Y45: 4909.139681
A46: 2022-10-01 | B46: 3332 | C46: 1970 | D46: 35 | E46: 637 | F46: 57 | G46: 273 | H46: 5643.042967 | J46: =vPLDashboard[[#This Row],[Period]] -> 2022-10-01 | K46: =SUM(B34:B46) -> 41832 | L46: 23944 | M46: 509 | N46: 7704 | O46: 644 | P46: 3898 | R46: 2022-08-01 | S46: 3364 | T46: 1640 | U46: 51 | V46: 563 | W46: 45 | X46: 262 | Y46: 5540.725419
A47: 2022-11-01 | B47: 3325 | C47: 2008 | D47: 40 | E47: 598 | F47: 67 | G47: 281 | H47: 5226.413629 | J47: =vPLDashboard[[#This Row],[Period]] -> 2022-11-01 | K47: =SUM(B35:B47) -> 41645 | L47: 24038 | M47: 515 | N47: 7664 | O47: 650 | P47: 3865 | R47: 2022-09-01 | S47: 3260 | T47: 1644 | U47: 29 | V47: 614 | W47: 49 | X47: 246 | Y47: 4830.333739
A48: 2022-12-01 | B48: 2295 | C48: 1921 | D48: 37 | E48: 534 | F48: 45 | G48: 201 | H48: 5676.629104 | J48: =vPLDashboard[[#This Row],[Period]] -> 2022-12-01 | K48: =SUM(B36:B48) -> 40445 | L48: 23896 | M48: 516 | N48: 7540 | O48: 655 | P48: 3742 | R48: 2022-10-01 | S48: 3332 | T48: 1970 | U48: 35 | V48: 637 | W48: 57 | X48: 273 | Y48: 5643.042967
A49: 2023-01-01 | B49: 3373 | C49: 1788 | D49: 28 | E49: 576 | F49: 55 | G49: 267 | H49: 6191.644981 | J49: =vPLDashboard[[#This Row],[Period]] -> 2023-01-01 | K49: =SUM(B37:B49) -> 41344 | L49: 23741 | M49: 515 | N49: 7554 | O49: 674 | P49: 3706 | R49: 2022-11-01 | S49: 3322 | T49: 2008 | U49: 40 | V49: 598 | W49: 67 | X49: 281 | Y49: 5226.413629
A50: 2023-02-01 | B50: 3298 | C50: 1300 | D50: 37 | E50: 493 | F50: 41 | G50: 274 | H50: 5775.487737 | J50: =vPLDashboard[[#This Row],[Period]] -> 2023-02-01 | K50: =SUM(B38:B50) -> 41410 | L50: 23249 | M50: 530 | N50: 7443 | O50: 666 | P50: 3649 | R50: 2022-12-01 | S50: 2295 | T50: 1921 | U50: 37 | V50: 534 | W50: 45 | X50: 201 | Y50: 5676.629104
A51: 2023-03-01 | B51: 3567 | C51: 2193 | D51: 35 | E51: 675 | F51: 60 | G51: 331 | H51: 5439.928519 | J51: =vPLDashboard[[#This Row],[Period]] -> 2023-03-01 | K51: =SUM(B39:B51) -> 41794 | L51: 24079 | M51: 531 | N51: 7642 | O51: 678 | P51: 3670 | R51: 2023-01-01 | S51: 3372 | T51: 1788 | U51: 28 | V51: 576 | W51: 55 | X51: 267 | Y51: 6191.644981
A52: 2023-04-01 | B52: 2733 | C52: 1675 | D52: 27 | E52: 533 | F52: 50 | G52: 268 | H52: 5937.084776 | J52: =vPLDashboard[[#This Row],[Period]] -> 2023-04-01 | K52: =SUM(B40:B52) -> 41063 | L52: 23780 | M52: 504 | N52: 7515 | O52: 677 | P52: 3642 | R52: 2023-02-01 | S52: 3297 | T52: 1300 | U52: 37 | V52: 493 | W52: 41 | X52: 274 | Y52: 5775.487737
A53: 2023-05-01 | B53: 3172 | C53: 1807 | D53: 36 | E53: 547 | F53: 53 | G53: 272 | H53: 5417.123419 | J53: =vPLDashboard[[#This Row],[Period]] -> 2023-05-01 | K53: =SUM(B41:B53) -> 41455 | L53: 23852 | M53: 497 | N53: 7501 | O53: 672 | P53: 3619 | R53: 2023-03-01 | S53: 3568 | T53: 2193 | U53: 35 | V53: 675 | W53: 60 | X53: 331 | Y53: 5439.928519
A54: 2023-06-01 | B54: 3448 | C54: 1970 | D54: 44 | E54: 620 | F54: 54 | G54: 293 | H54: 6128.198771 | J54: =vPLDashboard[[#This Row],[Period]] -> 2023-06-01 | K54: =SUM(B42:B54) -> 41731 | L54: 23959 | M54: 494 | N54: 7491 | O54: 679 | P54: 3546 | R54: 2023-04-01 | S54: 2733 | T54: 1675 | U54: 27 | V54: 533 | W54: 50 | X54: 268 | Y54: 5937.084776
A55: 2023-07-01 | B55: 3351 | C55: 1960 | D55: 34 | E55: 642 | F55: 62 | G55: 265 | H55: 5479.147584 | J55: =vPLDashboard[[#This Row],[Period]] -> 2023-07-01 | K55: =SUM(B43:B55) -> 42073 | L55: 24203 | M55: 475 | N55: 7592 | O55: 691 | P55: 3478 | R55: 2023-05-01 | S55: 3172 | T55: 1807 | U55: 36 | V55: 547 | W55: 53 | X55: 272 | Y55: 5417.123419
A56: 2023-08-01 | B56: 3397 | C56: 1929 | D56: 38 | E56: 656 | F56: 48 | G56: 281 | H56: 5596.66733 | J56: =vPLDashboard[[#This Row],[Period]] -> 2023-08-01 | K56: =SUM(B44:B56) -> 42261 | L56: 24363 | M56: 471 | N56: 7705 | O56: 686 | P56: 3488 | R56: 2023-06-01 | S56: 3448 | T56: 1970 | U56: 44 | V56: 620 | W56: 54 | X56: 293 | Y56: 6128.198771
A57: 2023-09-01 | B57: 3142 | C57: 1973 | D57: 42 | E57: 614 | F57: 54 | G57: 287 | H57: 6067.685052 | J57: =vPLDashboard[[#This Row],[Period]] -> 2023-09-01 | K57: =SUM(B45:B57) -> 41802 | L57: 24400 | M57: 462 | N57: 7743 | O57: 695 | P57: 3521 | R57: 2023-07-01 | S57: 3351 | T57: 1960 | U57: 34 | V57: 642 | W57: 62 | X57: 265 | Y57: 5479.147584
A58: 2023-10-01 | B58: 3323 | C58: 1969 | D58: 42 | E58: 601 | F58: 43 | G58: 317 | H58: 5802.980189 | J58: =vPLDashboard[[#This Row],[Period]] -> 2023-10-01 | K58: =SUM(B46:B58) -> 41756 | L58: 24463 | M58: 475 | N58: 7726 | O58: 689 | P58: 3610 | R58: 2023-08-01 | S58: 3397 | T58: 1929 | U58: 38 | V58: 656 | W58: 48 | X58: 281 | Y58: 5596.66733
A59: 2023-11-01 | B59: 3233 | C59: 1998 | D59: 41 | E59: 591 | F59: 56 | G59: 329 | H59: 5550.885744 | J59: =vPLDashboard[[#This Row],[Period]] -> 2023-11-01 | K59: =SUM(B47:B59) -> 41657 | L59: 24491 | M59: 481 | N59: 7680 | O59: 688 | P59: 3666 | R59: 2023-09-01 | S59: 3142 | T59: 1973 | U59: 42 | V59: 614 | W59: 54 | X59: 287 | Y59: 6067.685052
A60: 2023-12-01 | B60: 2259 | C60: 1599 | D60: 36 | E60: 499 | F60: 31 | G60: 256 | H60: 6038.148867 | J60: =vPLDashboard[[#This Row],[Period]] -> 2023-12-01 | K60: =SUM(B48:B60) -> 40591 | L60: 24082 | M60: 477 | N60: 7581 | O60: 652 | P60: 3641 | R60: 2023-10-01 | S60: 3323 | T60: 1969 | U60: 42 | V60: 601 | W60: 43 | X60: 317 | Y60: 5802.980189
A61: 2024-01-01 | B61: 3163 | C61: 1885 | D61: 43 | E61: 590 | F61: 49 | G61: 299 | H61: 5719.211739 | J61: =vPLDashboard[[#This Row],[Period]] -> 2024-01-01 | K61: =SUM(B49:B61) -> 41459 | L61: 24046 | M61: 483 | N61: 7637 | O61: 656 | P61: 3739 | R61: 2023-11-01 | S61: 3233 | T61: 1998 | U61: 41 | V61: 591 | W61: 56 | X61: 329 | Y61: 5550.885744
A62: 2024-02-01 | B62: 3055 | C62: 1524 | D62: 33 | E62: 507 | F62: 48 | G62: 320 | H62: 5574.140375 | J62: =vPLDashboard[[#This Row],[Period]] -> 2024-02-01 | K62: =SUM(B50:B62) -> 41141 | L62: 23782 | M62: 488 | N62: 7568 | O62: 649 | P62: 3792 | R62: 2023-12-01 | S62: 2259 | T62: 1599 | U62: 36 | V62: 499 | W62: 31 | X62: 256 | Y62: 6038.148867
A63: 2024-03-01 | B63: 2939 | C63: 1716 | D63: 40 | E63: 528 | F63: 43 | G63: 265 | H63: 6120.210377 | J63: =vPLDashboard[[#This Row],[Period]] -> 2024-03-01 | K63: =SUM(B51:B63) -> 40782 | L63: 24198 | M63: 491 | N63: 7603 | O63: 651 | P63: 3783 | R63: 2024-01-01 | S63: 3163 | T63: 1885 | U63: 43 | V63: 590 | W63: 49 | X63: 299 | Y63: 5719.211739
A64: 2024-04-01 | B64: 2984 | C64: 1758 | D64: 36 | E64: 499 | F64: 50 | G64: 278 | H64: 5887.266546 | J64: =vPLDashboard[[#This Row],[Period]] -> 2024-04-01 | K64: =SUM(B52:B64) -> 40199 | L64: 23763 | M64: 492 | N64: 7427 | O64: 641 | P64: 3730 | R64: 2024-02-01 | S64: 3055 | T64: 1524 | U64: 33 | V64: 507 | W64: 48 | X64: 320 | Y64: 5574.140375
A65: 2024-05-01 | B65: 2690 | C65: 1801 | D65: 32 | E65: 474 | F65: 52 | G65: 222 | H65: 6260.844549 | J65: =vPLDashboard[[#This Row],[Period]] -> 2024-05-01 | K65: =SUM(B53:B65) -> 40156 | L65: 23889 | M65: 497 | N65: 7368 | O65: 643 | P65: 3684 | R65: 2024-03-01 | S65: 2939 | T65: 1716 | U65: 40 | V65: 528 | W65: 43 | X65: 265 | Y65: 6120.210377
A66: 2024-06-01 | B66: 2647 | C66: 1642 | D66: 36 | E66: 513 | F66: 35 | G66: 221 | H66: 6529.575791 | J66: =vPLDashboard[[#This Row],[Period]] -> 2024-06-01 | K66: =SUM(B54:B66) -> 39631 | L66: 23724 | M66: 497 | N66: 7334 | O66: 625 | P66: 3633 | R66: 2024-04-01 | S66: 2984 | T66: 1758 | U66: 36 | V66: 499 | W66: 50 | X66: 278 | Y66: 5887.266546
A67: 2024-07-01 | B67: 3025 | C67: 1814 | D67: 47 | E67: 601 | F67: 45 | G67: 275 | H67: 6786.71029 | J67: =vPLDashboard[[#This Row],[Period]] -> 2024-07-01 | K67: =SUM(B55:B67) -> 39208 | L67: 23568 | M67: 500 | N67: 7315 | O67: 616 | P67: 3615 | R67: 2024-05-01 | S67: 2690 | T67: 1801 | U67: 32 | V67: 474 | W67: 52 | X67: 222 | Y67: 6260.844549
A68: 2024-08-01 | B68: 2816 | C68: 1599 | D68: 43 | E68: 497 | F68: 42 | G68: 214 | H68: 6246.916355 | J68: =vPLDashboard[[#This Row],[Period]] -> 2024-08-01 | K68: =SUM(B56:B68) -> 38673 | L68: 23207 | M68: 509 | N68: 7170 | O68: 596 | P68: 3564 | R68: 2024-06-01 | S68: 2647 | T68: 1642 | U68: 36 | V68: 513 | W68: 35 | X68: 221 | Y68: 6529.575791
A69: 2024-09-01 | B69: 2990 | C69: 1593 | D69: 36 | E69: 525 | F69: 37 | G69: 224 | H69: 6373.169285 | J69: =vPLDashboard[[#This Row],[Period]] -> 2024-09-01 | K69: =SUM(B57:B69) -> 38266 | L69: 22871 | M69: 507 | N69: 7039 | O69: 585 | P69: 3507 | R69: 2024-07-01 | S69: 3025 | T69: 1814 | U69: 47 | V69: 601 | W69: 45 | X69: 275 | Y69: 6786.71029
A70: 2024-10-01 | B70: 3148 | C70: 1662 | D70: 39 | E70: 604 | F70: 47 | G70: 262 | H70: 6704.625992 | J70: =vPLDashboard[[#This Row],[Period]] -> 2024-10-01 | K70: =SUM(B58:B70) -> 38272 | L70: 22560 | M70: 504 | N70: 7029 | O70: 578 | P70: 3482 | R70: 2024-08-01 | S70: 2816 | T70: 1599 | U70: 43 | V70: 497 | W70: 42 | X70: 214 | Y70: 6246.916355
A71: 2024-11-01 | B71: 2732 | C71: 1560 | D71: 21 | E71: 548 | F71: 52 | G71: 266 | H71: 6677.562293 | J71: =vPLDashboard[[#This Row],[Period]] -> 2024-11-01 | K71: =SUM(B59:B71) -> 37681 | L71: 22151 | M71: 483 | N71: 6976 | O71: 587 | P71: 3431 | R71: 2024-09-01 | S71: 2990 | T71: 1593 | U71: 36 | V71: 525 | W71: 37 | X71: 224 | Y71: 6373.169285
A72: 2024-12-01 | B72: 2021 | C72: 1373 | D72: 30 | E72: 445 | F72: 51 | G72: 207 | H72: 6591.129758 | J72: =vPLDashboard[[#This Row],[Period]] -> 2024-12-01 | K72: =SUM(B60:B72) -> 36469 | L72: 21526 | M72: 472 | N72: 6830 | O72: 582 | P72: 3309 | R72: 2024-10-01 | S72: 3148 | T72: 1662 | U72: 39 | V72: 604 | W72: 47 | X72: 262 | Y72: 6704.625992
A73: 2025-01-01 | B73: 2755 | C73: 1408 | D73: 37 | E73: 495 | F73: 45 | G73: 275 | H73: 6155.892145 | J73: =vPLDashboard[[#This Row],[Period]] -> 2025-01-01 | K73: =SUM(B61:B73) -> 36965 | L73: 21335 | M73: 473 | N73: 6826 | O73: 596 | P73: 3328 | R73: 2024-11-01 | S73: 2732 | T73: 1560 | U73: 21 | V73: 548 | W73: 52 | X73: 266 | Y73: 6677.562293
A74: 2025-02-01 | B74: 2659 | C74: 1021 | D74: 29 | E74: 475 | F74: 39 | G74: 236 | H74: 8229.927627 | J74: =vPLDashboard[[#This Row],[Period]] -> 2025-02-01 | K74: =SUM(B62:B74) -> 36461 | L74: 20471 | M74: 459 | N74: 6711 | O74: 586 | P74: 3265 | R74: 2024-12-01 | S74: 2021 | T74: 1373 | U74: 30 | V74: 445 | W74: 51 | X74: 207 | Y74: 6591.129758
A75: 2025-03-01 | B75: 2699 | C75: 1309 | D75: 25 | E75: 518 | F75: 44 | G75: 291 | H75: 6560.850206 | J75: =vPLDashboard[[#This Row],[Period]] -> 2025-03-01 | K75: =SUM(B63:B75) -> 36105 | L75: 20256 | M75: 451 | N75: 6722 | O75: 582 | P75: 3236 | R75: 2025-01-01 | S75: 2755 | T75: 1408 | U75: 37 | V75: 495 | W75: 45 | X75: 275 | Y75: 6155.892145
A76: 2025-04-01 | B76: 2278 | C76: 1338 | D76: 31 | E76: 510 | F76: 51 | G76: 238 | H76: 6604.04042 | J76: =vPLDashboard[[#This Row],[Period]] -> 2025-04-01 | K76: =SUM(B64:B76) -> 35444 | L76: 19878 | M76: 442 | N76: 6704 | O76: 590 | P76: 3209 | R76: 2025-02-01 | S76: 2659 | T76: 1021 | U76: 29 | V76: 475 | W76: 39 | X76: 236 | Y76: 8229.927627
R77: 2025-03-01 | S77: 2699 | T77: 1309 | U77: 25 | V77: 518 | W77: 44 | X77: 291 | Y77: 6560.850206
R78: 2025-04-01 | S78: 2278 | T78: 1338 | U78: 31 | V78: 510 | W78: 51 | X78: 238 | Y78: 6604.04042

Sheet Year Calculations (hidden)
A1: Period | B1: CNFs sent | C1: CNFs left at stage 1 | D1: Stage 2 exit | E1: Exit process | F1: Court pack | G1: Settled claims
A2: 2013-14 | B2: =SUM('Backing Sheet Data'!#REF!) ->  | C2: =SUM('Backing Sheet Data'!#REF!) ->  | D2: =SUM('Backing Sheet Data'!#REF!) ->  | E2: =SUM('Backing Sheet Data'!#REF!) ->  | F2: =SUM('Backing Sheet Data'!#REF!) ->  | G2: =SUM('Backing Sheet Data'!#REF!) -> 
A3: 2014-15 | B3: =SUM('Backing Sheet Data'!#REF!) ->  | C3: =SUM('Backing Sheet Data'!#REF!) ->  | D3: =SUM('Backing Sheet Data'!#REF!) ->  | E3: =SUM('Backing Sheet Data'!#REF!) ->  | F3: =SUM('Backing Sheet Data'!#REF!) ->  | G3: =SUM('Backing Sheet Data'!#REF!) -> 
A4: 2015-16 | B4: =SUM('Backing Sheet Data'!#REF!) ->  | C4: =SUM('Backing Sheet Data'!#REF!) ->  | D4: =SUM('Backing Sheet Data'!#REF!) ->  | E4: =SUM('Backing Sheet Data'!#REF!) ->  | F4: =SUM('Backing Sheet Data'!#REF!) ->  | G4: =SUM('Backing Sheet Data'!#REF!) -> 
A5: 2016-17 | B5: =SUM('Backing Sheet Data'!#REF!) ->  | C5: =SUM('Backing Sheet Data'!#REF!) ->  | D5: =SUM('Backing Sheet Data'!#REF!) ->  | E5: =SUM('Backing Sheet Data'!#REF!) ->  | F5: =SUM('Backing Sheet Data'!#REF!) ->  | G5: =SUM('Backing Sheet Data'!#REF!) -> 
A6: 2017-18 | B6: =SUM('Backing Sheet Data'!#REF!) ->  | C6: =SUM('Backing Sheet Data'!#REF!) ->  | D6: =SUM('Backing Sheet Data'!#REF!) ->  | E6: =SUM('Backing Sheet Data'!#REF!) ->  | F6: =SUM('Backing Sheet Data'!#REF!) ->  | G6: =SUM('Backing Sheet Data'!#REF!) -> 
A7: 2018-19 | B7: =SUM('Backing Sheet Data'!#REF!) ->  | C7: =SUM('Backing Sheet Data'!#REF!) ->  | D7: =SUM('Backing Sheet Data'!#REF!) ->  | E7: =SUM('Backing Sheet Data'!#REF!) ->  | F7: =SUM('Backing Sheet Data'!#REF!) ->  | G7: =SUM('Backing Sheet Data'!#REF!) -> 
A8: 2019-20 | B8: =SUM('Backing Sheet Data'!#REF!) ->  | C8: =SUM('Backing Sheet Data'!#REF!) ->  | D8: =SUM('Backing Sheet Data'!#REF!) ->  | E8: =SUM('Backing Sheet Data'!#REF!) ->  | F8: =SUM('Backing Sheet Data'!#REF!) ->  | G8: =SUM('Backing Sheet Data'!#REF!) -> 
A9: 2020-21 | B9: =SUM('Backing Sheet Data'!#REF!) ->  | C9: =SUM('Backing Sheet Data'!#REF!) ->  | D9: =SUM('Backing Sheet Data'!#REF!) ->  | E9: =SUM('Backing Sheet Data'!#REF!) ->  | F9: =SUM('Backing Sheet Data'!#REF!) ->  | G9: =SUM('Backing Sheet Data'!#REF!) -> 
